bitfinex/quotes_BTCUSD_20250114
["timestamp","ask_amount","ask_price","bid_price","bid_amount"]
[1736885334890,0.00137356,96588.0,96581.0,0.15]
[1736885335206,0.00137356,96586.0,96582.0,0.11922692]
[1736885335861,0.00137356,96585.0,96582.0,0.11922692]
[1736885336277,0.00137356,96583.0,96575.0,0.15]
[1736885336483,0.00137356,96576.0,96565.0,0.207114]
[1736885336699,0.207081,96581.0,96550.0,0.1856032]
[1736885336700,0.00137356,96572.0,96569.0,0.10422692]
[1736885336902,0.00137356,96572.0,96570.0,0.15]
[1736885337073,0.20847656,96570.0,96560.0,0.207125]
[1736885337276,0.20847656,96570.0,96544.0,0.253658]
[1736885337277,0.00137356,96562.0,96555.0,0.207135]
[1736885337482,0.00137356,96557.0,96555.0,0.0284135]
[1736885337686,0.00137356,96560.0,96556.0,0.10422692]
[1736885338676,0.00137356,96560.0,96557.0,0.15]
[1736885338880,0.00137356,96560.0,96559.0,0.15]
[1736885340278,0.00137356,96560.0,96558.0,0.15]
[1736885340501,0.00137356,96560.0,96559.0,0.03815828]
[1736885341136,0.00137356,96559.0,96558.0,0.15]
[1736885341331,0.00137356,96560.0,96551.0,0.207144]
[1736885341726,0.00137356,96560.0,96559.0,0.002]
[1736885341914,0.00137356,96560.0,96559.0,0.001]
[1736885342051,0.00137356,96567.0,96566.0,0.207112]
[1736885342453,0.00137356,96567.0,96564.0,0.15]
[1736885342653,0.00137356,96567.0,96564.0,0.25422692]
[1736885343073,0.00137356,96565.0,96564.0,0.15]
[1736885343290,0.00137356,96560.0,96553.0,0.207138]
[1736885343478,0.00237356,96560.0,96554.0,0.14565552]
[1736885343878,0.00137356,96560.0,96559.0,0.003]
[1736885344079,0.00137356,96560.0,96555.0,0.15]
[1736885344283,0.00137356,96560.0,96557.0,0.15]
[1736885344490,0.00137356,96560.0,96557.0,0.10422692]
[1736885344719,0.00137356,96560.0,96558.0,0.01042269]
[1736885345150,0.00137356,96558.0,96557.0,0.10422692]
[1736885345375,0.1,96586.0,96534.0,0.0788]
[1736885345376,0.00137356,96543.0,96534.0,0.0788]
[1736885345606,0.00137356,96539.0,96535.0,0.10422692]
[1736885345794,0.207158,96545.0,96526.0,0.207196]
[1736885345795,0.00137356,96533.0,96530.0,0.207187]
[1736885346021,0.00137356,96533.0,96531.0,0.10422692]
[1736885346543,0.00137356,96533.0,96532.0,0.357185]
[1736885346741,0.00137356,96533.0,96532.0,0.20729317]
[1736885347380,0.00137356,96533.0,96532.0,0.35729317]
[1736885347731,0.00137356,96533.0,96532.0,0.15010817]
[1736885348314,0.00137356,96533.0,96532.0,0.15110817]
[1736885348668,0.00137356,96533.0,96532.0,0.15310817]
[1736885350000,0.00137356,96533.0,96532.0,0.15010817]
[1736885350217,0.00137356,96533.0,96532.0,0.15210817]
[1736885350422,0.00137356,96533.0,96532.0,0.15310817]
[1736885350639,0.00137356,96533.0,96532.0,0.15110817]
[1736885350838,0.00137356,96533.0,96532.0,0.15510817]
[1736885351059,0.00137356,96533.0,96532.0,0.21748118]
[1736885351267,0.00137356,96533.0,96532.0,0.21848118]
[1736885351476,0.00137356,96533.0,96532.0,0.15510817]
[1736885351651,0.00137356,96533.0,96532.0,0.15010817]
[1736885351861,0.00137356,96533.0,96532.0,0.00010817]
[1736885352064,0.00137356,96533.0,96532.0,0.00310817]
[1736885352274,0.0073055,96533.0,96532.0,0.00310817]
[1736885352488,0.00137356,96533.0,96532.0,0.00310817]
[1736885352696,0.0073189,96533.0,96532.0,0.00310817]
[1736885353200,0.0073189,96533.0,96532.0,0.00010817]
[1736885353398,0.0073189,96533.0,96532.0,0.00310817]
[1736885353636,0.0073189,96533.0,96532.0,0.00410817]
[1736885353796,0.0073189,96533.0,96532.0,0.00110817]
[1736885354000,0.0093189,96533.0,96532.0,0.00010817]
[1736885354208,0.0073189,96533.0,96532.0,0.00010817]
[1736885354505,0.2145019,96533.0,96532.0,0.00010817]
[1736885354683,0.0083189,96533.0,96532.0,0.00010817]
[1736885354843,0.0093189,96533.0,96532.0,0.00010817]
[1736885355036,0.0083189,96533.0,96532.0,0.00010817]
[1736885356282,0.00794534,96533.0,96532.0,0.00010817]
[1736885356591,0.001,96533.0,96532.0,0.30333509]
[1736885356781,0.001,96533.0,96532.0,0.38543509]
[1736885357204,0.001,96533.0,96532.0,0.38743509]
[1736885357428,0.00137356,96559.0,96535.0,0.15]
[1736885357629,0.00137356,96553.0,96537.0,0.43613889]
[1736885357837,0.00137356,96558.0,96539.0,0.15]
[1736885358047,0.207094,96575.0,96559.0,0.15]
[1736885358269,0.00137356,96560.0,96559.0,0.15]
[1736885358707,0.00137356,96553.0,96549.0,0.207146]
[1736885358917,0.00137356,96553.0,96552.0,0.15]
[1736885360229,0.00137356,96553.0,96552.0,0.001]
[1736885360640,0.00137356,96552.0,96551.0,0.15]
[1736885361106,0.00137356,96540.0,96538.0,0.207171]
[1736885361313,0.00137356,96540.0,96539.0,0.41181104]
[1736885363470,0.00137356,96540.0,96539.0,0.20464104]
[1736885363674,0.00137356,96540.0,96539.0,0.20964104]
[1736885364025,0.00137356,96540.0,96539.0,0.20564104]
[1736885364229,0.00137356,96540.0,96539.0,0.20864104]
[1736885364561,0.00137356,96540.0,96539.0,0.20564104]
[1736885365230,0.00137356,96540.0,96539.0,0.001]
[1736885365231,0.20854156,96540.0,96539.0,0.001]
[1736885365437,0.42900856,96540.0,96539.0,0.001]
[1736885365650,0.62363936,96540.0,96539.0,0.001]
[1736885365874,0.62363936,96540.0,96532.0,0.00096037]
[1736885365875,0.40855656,96533.0,96532.0,0.00096037]
[1736885366085,0.53578348,96533.0,96532.0,0.00096037]
[1736885366330,0.54146976,96533.0,96532.0,0.00096037]
[1736885367206,0.54346976,96533.0,96532.0,0.00096037]
[1736885367619,0.54446976,96533.0,96532.0,0.00096037]
[1736885368228,0.64865144,96533.0,96532.0,0.00096037]
[1736885369276,0.64865144,96533.0,96532.0,3.7e-07]
[1736885369486,0.69595144,96533.0,96532.0,3.7e-07]
[1736885369911,0.69795144,96533.0,96532.0,3.7e-07]
[1736885370311,0.70195144,96533.0,96532.0,0.00100037]
[1736885370668,0.59576976,96533.0,96532.0,0.00100037]
[1736885370884,0.69809564,96533.0,96532.0,0.00100037]
[1736885371096,0.70609564,96533.0,96532.0,0.00200037]
[1736885371312,0.69551245,96533.0,96532.0,0.00100037]
[1736885371524,0.43889245,96533.0,96532.0,0.00200037]
[1736885371999,0.35414976,96533.0,96532.0,0.00100037]
[1736885372204,0.22092284,96533.0,96532.0,3.7e-07]
[1736885372338,0.22592284,96533.0,96532.0,0.00100037]
[1736885372966,0.22092284,96533.0,96532.0,3.7e-07]
[1736885373169,0.22592284,96533.0,96532.0,3.7e-07]
[1736885373762,0.22592284,96533.0,96532.0,0.00100037]
[1736885373763,0.22492284,96533.0,96532.0,0.00100037]
[1736885373912,0.22492284,96533.0,96532.0,3.7e-07]
[1736885374324,0.29884982,96533.0,96532.0,3.7e-07]
[1736885374534,0.63007674,96533.0,96532.0,0.00100037]
[1736885374871,0.62607674,96533.0,96532.0,3.7e-07]
[1736885375205,0.62907674,96533.0,96532.0,0.00100037]
[1736885375408,0.63632605,96533.0,96532.0,3.7e-07]
[1736885375735,0.63532605,96533.0,96532.0,0.00100037]
[1736885376120,0.63932605,96533.0,96532.0,0.00100037]
[1736885376563,0.63532605,96533.0,96532.0,0.00100037]
[1736885377098,0.63932605,96533.0,96532.0,0.00100037]
[1736885377341,0.56539907,96533.0,96532.0,0.00100037]
[1736885377862,0.46539907,96533.0,96532.0,0.00100037]
[1736885378117,0.56539907,96533.0,96532.0,0.00100037]
[1736885378338,0.55514976,96533.0,96532.0,0.00100037]
[1736885378578,0.45514976,96533.0,96532.0,0.00100037]
[1736885378819,0.55514976,96533.0,96532.0,0.00100037]
[1736885379330,0.22124284,96533.0,96532.0,0.00100037]
[1736885379501,0.22780284,96533.0,96532.0,0.00100037]
[1736885380862,0.21724284,96533.0,96532.0,0.00100037]
[1736885381333,0.21424284,96533.0,96532.0,3.7e-07]
[1736885381962,0.21824284,96533.0,96532.0,0.00100037]
[1736885382182,0.22124284,96533.0,96532.0,0.00100037]
[1736885382644,0.01405984,96533.0,96532.0,0.00100037]
[1736885382777,0.007,96533.0,96532.0,0.27604683]
[1736885383182,0.00656,96553.0,96532.0,0.27604683]
[1736885383183,0.00137356,96540.0,96533.0,0.357183]
[1736885383381,0.00137356,96540.0,96535.0,0.15]
[1736885383579,0.00137356,96540.0,96537.0,0.15]
[1736885383807,0.00137356,96542.0,96537.0,0.15]
[1736885384167,0.00137356,96540.0,96538.0,0.05650248]
[1736885384989,0.00137356,96542.0,96540.0,0.15]
[1736885386063,0.00137356,96542.0,96539.0,0.15]
[1736885386304,0.207143,96552.0,96539.0,0.15]
[1736885386305,0.00137356,96540.0,96539.0,0.15]
[1736885386516,0.00308427,96551.0,96532.0,0.08280037]
[1736885386517,0.00137356,96533.0,96532.0,0.08280037]
[1736885386692,0.00137356,96533.0,96532.0,3.7e-07]
[1736885386897,0.00711005,96533.0,96532.0,3.7e-07]
[1736885387136,0.00137356,96533.0,96532.0,3.7e-07]
[1736885387314,0.00710572,96533.0,96532.0,3.7e-07]
[1736885387518,0.00137356,96533.0,96532.0,3.7e-07]
[1736885387718,0.00710572,96533.0,96532.0,3.7e-07]
[1736885387927,0.001,96533.0,96532.0,0.25422729]
[1736885388128,0.00572177,96533.0,96532.0,0.27965002]
[1736885388489,0.00178962,96551.0,96533.0,0.15]
[1736885388663,0.00178962,96551.0,96532.0,0.12965002]
[1736885388664,0.00137356,96549.0,96535.0,0.2303]
[1736885388804,0.00137356,96546.0,96537.0,0.15]
[1736885389009,0.00137356,96546.0,96541.0,0.15]
[1736885389247,0.00137356,96549.0,96547.0,0.15]
[1736885389710,0.00137356,96548.0,96547.0,0.15]
[1736885389888,0.00712207,96548.0,96547.0,0.15]
[1736885390124,0.00137356,96548.0,96547.0,0.15]
[1736885390498,0.00137356,96546.0,96543.0,0.15]
[1736885390702,0.00137356,96544.0,96543.0,0.15]
[1736885390909,0.20853256,96544.0,96543.0,0.15]
[1736885391119,0.00137356,96536.0,96532.0,3.7e-07]
[1736885391323,0.00137356,96536.0,96532.0,0.15000037]
[1736885391523,0.00711169,96536.0,96532.0,0.15000037]
[1736885391743,0.00137356,96536.0,96532.0,0.15000037]
[1736885392883,0.00137356,96536.0,96532.0,3.7e-07]
[1736885393027,0.00711169,96536.0,96532.0,3.7e-07]
[1736885393228,0.00137356,96533.0,96532.0,3.7e-07]
[1736885393482,0.21429295,96533.0,96532.0,3.7e-07]
[1736885393850,0.21429295,96533.0,96532.0,0.00803041]
[1736885393851,0.00573639,96533.0,96532.0,0.00803041]
[1736885394054,0.00573639,96533.0,96532.0,3.7e-07]
[1736885394259,0.00137356,96534.0,96533.0,0.15]
[1736885396063,0.00137356,96534.0,96533.0,0.151]
[1736885396510,0.00137356,96534.0,96533.0,0.15]
[1736885396865,0.00709135,96534.0,96533.0,0.154]
[1736885397063,0.00137356,96534.0,96533.0,0.154]
[1736885397734,0.00137356,96534.0,96533.0,0.41802174]
[1736885397909,0.00137356,96534.0,96533.0,0.21083874]
[1736885398754,0.00137356,96534.0,96533.0,0.154]
[1736885399944,0.00137356,96534.0,96533.0,0.361183]
[1736885400291,0.00137356,96534.0,96533.0,0.004]
[1736885400497,0.00709718,96534.0,96533.0,0.004]
[1736885400697,0.22178959,96534.0,96533.0,0.004]
[1736885400896,0.31865506,96534.0,96533.0,0.004]
[1736885401363,0.2343241,96534.0,96533.0,0.003]
[1736885401571,0.2363241,96534.0,96533.0,0.003]
[1736885401931,0.3363241,96534.0,96533.0,0.003]
[1736885402132,0.3343241,96534.0,96533.0,0.003]
[1736885402413,0.3383241,96534.0,96533.0,0.003]
[1736885402720,0.43155656,96533.0,96532.0,3.7e-07]
[1736885402925,0.53578348,96533.0,96532.0,3.7e-07]
[1736885403099,0.54145123,96533.0,96532.0,3.7e-07]
[1736885404055,0.54545123,96533.0,96532.0,0.00100037]
[1736885404502,0.54545123,96533.0,96524.0,0.0008522]
[1736885404503,0.43157356,96525.0,96524.0,5.7e-07]
[1736885404705,0.66348492,96525.0,96524.0,5.7e-07]
[1736885405732,0.66848492,96525.0,96524.0,5.7e-07]
[1736885405931,0.81848492,96525.0,96524.0,5.7e-07]
[1736885406247,1.15192692,96525.0,96524.0,5.7e-07]
[1736885406450,0.20863956,96494.0,96493.0,0.0008522]
[1736885406649,0.22196972,96494.0,96493.0,0.00134909]
[1736885406853,0.22067421,96494.0,96493.0,0.00134909]
[1736885407614,0.22567421,96494.0,96493.0,0.00234909]
[1736885407820,0.22067421,96494.0,96493.0,0.00134909]
[1736885408246,0.22667421,96494.0,96493.0,0.00234909]
[1736885408617,0.22011421,96494.0,96493.0,0.00234909]
[1736885408824,0.01147465,96494.0,96493.0,0.35961709]
[1736885409028,0.006,96494.0,96493.0,0.62350572]
[1736885409239,0.008,96494.0,96493.0,0.41623772]
[1736885409450,0.008,96494.0,96493.0,0.62350572]
[1736885409648,0.008,96494.0,96493.0,0.27604909]
[1736885410266,0.002,96494.0,96493.0,0.27504909]
[1736885410467,0.002,96494.0,96493.0,0.48231709]
[1736885410677,0.007,96494.0,96493.0,0.48331709]
[1736885410879,0.002,96494.0,96493.0,0.48231709]
[1736885411077,0.00137356,96496.0,96494.0,0.15]
[1736885411288,0.00137356,96496.0,96495.0,0.357264]
[1736885411528,0.00137356,96496.0,96495.0,0.15]
[1736885414471,0.00137356,96496.0,96495.0,0.151]
[1736885414843,0.20863556,96496.0,96495.0,0.151]
[1736885415307,0.20863556,96496.0,96495.0,0.152]
[1736885415673,0.20863556,96496.0,96495.0,0.15]
[1736885416074,0.21263556,96496.0,96495.0,0.15]
[1736885416628,0.21263556,96496.0,96493.0,0.12504909]
[1736885416629,0.00137356,96494.0,96493.0,0.00134909]
[1736885416846,0.22860048,96494.0,96493.0,0.00134909]
[1736885417702,0.22860048,96494.0,96493.0,9e-08]
[1736885417703,0.32860048,96494.0,96493.0,9e-08]
[1736885418346,0.33160048,96494.0,96493.0,9e-08]
[1736885418556,0.32860048,96494.0,96493.0,9e-08]
[1736885418756,0.43465951,96494.0,96493.0,0.00100009]
[1736885419101,0.43865951,96494.0,96493.0,0.00100009]
[1736885419926,0.43865951,96494.0,96493.0,9e-08]
[1736885420128,0.51705951,96494.0,96493.0,9e-08]
[1736885420338,0.51705951,96494.0,96454.0,0.0008517]
[1736885420339,0.00137356,96455.0,96454.0,0.0008517]
[1736885420552,0.00137356,96455.0,96454.0,0.00100068]
[1736885421540,0.00137356,96455.0,96454.0,0.15100068]
[1736885421966,0.00137356,96455.0,96454.0,0.15400068]
[1736885422162,0.00137356,96455.0,96454.0,0.15100068]
[1736885422519,0.00137356,96455.0,96454.0,0.20865713]
[1736885422884,0.00137356,96461.0,96455.0,0.15]
[1736885423087,0.00137356,96466.0,96461.0,0.15]
[1736885423295,0.1,96498.0,96463.0,0.15]
[1736885423296,0.00137356,96469.0,96463.0,0.15]
[1736885423496,0.00137356,96475.0,96467.0,0.15]
[1736885423788,0.00137356,96477.0,96469.0,0.15]
[1736885424038,0.00137356,96477.0,96475.0,0.15]
[1736885424394,0.207268,96494.0,96477.0,0.15]
[1736885424395,0.00137356,96484.0,96477.0,0.15]
[1736885424665,0.00137356,96480.0,96479.0,0.15]
[1736885425639,0.00137356,96480.0,96475.0,0.002]
[1736885425870,0.00137356,96476.0,96475.0,0.002]
[1736885426668,0.00137356,96477.0,96475.0,0.002]
[1736885426872,0.207284,96486.0,96475.0,0.002]
[1736885426873,0.00137356,96478.0,96475.0,0.0633635]
[1736885427066,0.00137356,96476.0,96475.0,0.0633635]
[1736885427277,0.00137356,96476.0,96472.0,0.15]
[1736885427479,0.207284,96486.0,96472.0,0.15]
[1736885427480,0.00137356,96473.0,96472.0,0.15]
[1736885427706,0.00137356,96465.0,96463.0,0.15]
[1736885427953,0.00137356,96465.0,96463.0,0.357332]
[1736885428163,0.00137356,96465.0,96464.0,0.0642272]
[1736885428745,0.00137356,96465.0,96463.0,0.357332]
[1736885428746,0.00137356,96465.0,96463.0,0.15]
[1736885428904,0.00137356,96465.0,96463.0,0.207333]
[1736885429105,0.00137356,96465.0,96462.0,0.0776]
[1736885429306,0.00137356,96463.0,96462.0,0.0776]
[1736885429507,0.207326,96467.0,96460.0,0.15]
[1736885429508,0.00137356,96461.0,96460.0,0.15]
[1736885430054,0.207339,96460.0,96456.0,0.047]
[1736885430216,0.00137356,96457.0,96456.0,0.047]
[1736885430827,0.00137356,96462.0,96458.0,0.15]
[1736885431050,0.00137356,96464.0,96458.0,0.25422692]
[1736885431257,0.00137356,96462.0,96459.0,0.207341]
[1736885431451,0.20729,96483.0,96458.0,0.25422692]
[1736885431452,0.00137356,96473.0,96460.0,0.10422692]
[1736885431691,0.207264,96495.0,96460.0,0.10422692]
[1736885431692,0.00137356,96467.0,96462.0,0.15]
[1736885431915,0.00137356,96467.0,96466.0,0.357324]
[1736885432656,0.00137356,96461.0,96460.0,0.001]
[1736885433101,0.00961715,96461.0,96456.0,0.047]
[1736885433309,0.00137356,96468.0,96461.0,0.15]
[1736885433507,0.20729,96483.0,96463.0,0.15]
[1736885433508,0.00137356,96464.0,96463.0,0.15]
[1736885433682,0.00137356,96464.0,96463.0,0.23659079]
[1736885433885,0.00137356,96464.0,96463.0,0.15]
[1736885434427,0.00137356,96464.0,96456.0,0.047]
[1736885434722,0.00137356,96457.0,96454.0,0.00100068]
[1736885434954,0.21695425,96456.0,96454.0,0.00100068]
[1736885435077,0.00137356,96455.0,96454.0,0.00100068]
[1736885435270,0.010979,96455.0,96454.0,0.00100068]
[1736885435491,0.00960544,96455.0,96454.0,0.00100068]
[1736885435687,0.20872356,96455.0,96454.0,0.00100068]
[1736885435887,0.20872356,96455.0,96454.0,0.00300068]
[1736885435888,0.01097494,96455.0,96454.0,0.00300068]
[1736885436088,0.01097494,96455.0,96454.0,0.00500068]
[1736885436289,0.01097494,96455.0,96454.0,0.00300068]
[1736885436711,0.21832494,96455.0,96454.0,0.00400068]
[1736885437001,0.01097494,96455.0,96454.0,0.00400068]
[1736885437357,0.21832494,96455.0,96454.0,0.00400068]
[1736885441024,0.21832494,96455.0,96454.0,0.00100068]
[1736885441385,0.21832494,96455.0,96454.0,0.00200068]
[1736885441742,0.21832494,96455.0,96454.0,0.00300068]
[1736885441947,0.21832494,96455.0,96454.0,0.00100068]
[1736885442158,0.01297494,96455.0,96454.0,0.15100068]
[1736885442354,0.01797494,96455.0,96454.0,0.23392143]
[1736885442587,0.007,96455.0,96454.0,0.33814835]
[1736885442792,0.005,96455.0,96454.0,0.41574835]
[1736885442985,0.001,96455.0,96454.0,0.41574835]
[1736885443492,0.001,96455.0,96454.0,0.41874835]
[1736885444524,0.00137356,96461.0,96456.0,0.15]
[1736885444713,0.00137356,96461.0,96460.0,0.15]
[1736885444917,0.00137356,96467.0,96466.0,0.357326]
[1736885446742,0.00337356,96467.0,96466.0,0.357326]
[1736885447609,0.00337356,96467.0,96466.0,0.15]
[1736885448450,0.00337356,96467.0,96460.0,0.10422692]
[1736885448451,0.00137356,96456.0,96454.0,0.33295168]
[1736885448969,0.00137356,96456.0,96455.0,0.15]
[1736885449994,0.207317,96471.0,96459.0,0.15]
[1736885449995,0.00137356,96461.0,96459.0,0.15]
[1736885450234,0.00137356,96460.0,96459.0,0.15]
[1736885452037,0.00137356,96467.0,96459.0,0.10422692]
[1736885452237,0.00137356,96467.0,96460.0,0.10422692]
[1736885452439,0.00137356,96467.0,96463.0,0.15]
[1736885452661,0.00854564,96466.0,96464.0,0.10422692]
[1736885452876,0.00854564,96466.0,96465.0,0.2301]
[1736885453075,0.00137356,96478.0,96465.0,0.33432692]
[1736885453305,0.00137356,96478.0,96469.0,0.15]
[1736885453501,0.00137356,96478.0,96475.0,0.207305]
[1736885453700,0.00137356,96478.0,96477.0,0.357303]
[1736885454332,0.00137356,96478.0,96477.0,0.15]
[1736885454616,0.00137356,96478.0,96470.0,0.06916529]
[1736885454617,0.00137356,96467.0,96465.0,0.0801]
[1736885454889,0.00137356,96467.0,96466.0,0.02980416]
[1736885455147,0.00137356,96467.0,96466.0,0.38713016]
[1736885455632,0.00137356,96474.0,96472.0,0.15]
[1736885455883,0.004,96478.0,96477.0,0.207303]
[1736885456102,0.004,96478.0,96477.0,0.52841441]
[1736885456103,0.001,96478.0,96477.0,0.52841441]
[1736885456338,0.00137356,96484.0,96483.0,0.35729]
[1736885457695,0.00137356,96484.0,96483.0,0.35743898]
[1736885458141,0.00137356,96484.0,96483.0,0.43753898]
[1736885458818,0.00137356,96484.0,96483.0,0.44053898]
[1736885459042,0.00137356,96484.0,96483.0,0.34613674]
[1736885460572,0.00179277,96496.0,96484.0,0.207287]
[1736885460573,0.00137356,96487.0,96484.0,0.207287]
[1736885460770,0.00137356,96487.0,96484.0,0.31151392]
[1736885461023,0.00179277,96496.0,96483.0,0.09951261]
[1736885461024,0.00137356,96484.0,96483.0,0.09951261]
[1736885461258,0.00137356,96484.0,96483.0,0.17089317]
[1736885461487,0.00137356,96484.0,96483.0,0.15762954]
[1736885461707,0.00137356,96484.0,96483.0,0.15162954]
[1736885462460,0.00137356,96484.0,96483.0,0.15462954]
[1736885463264,0.00137356,96484.0,96483.0,0.16062954]
[1736885464492,0.00137356,96484.0,96483.0,0.00914898]
[1736885465230,0.02566925,96484.0,96483.0,0.00614898]
[1736885465475,0.0348477,96484.0,96483.0,0.00114898]
[1736885465735,0.0348477,96484.0,96483.0,0.00314898]
[1736885465736,0.03484782,96484.0,96483.0,0.00314898]
[1736885465972,0.57474382,96484.0,96483.0,0.00114898]
[1736885466212,0.57344801,96484.0,96483.0,0.00114898]
[1736885466445,0.57744801,96484.0,96483.0,0.00114898]
[1736885466676,0.57344801,96484.0,96483.0,0.00114898]
[1736885466882,0.57344801,96484.0,96483.0,0.00014898]
[1736885467083,0.57344801,96484.0,96454.0,0.0008517]
[1736885467084,0.10137356,96466.0,96454.0,0.0008517]
[1736885467303,0.2453788,96466.0,96465.0,0.0010028]
[1736885467514,0.2440827,96466.0,96465.0,0.0010028]
[1736885468980,0.2440827,96466.0,96465.0,0.0020028]
[1736885468981,0.2520827,96466.0,96465.0,0.0020028]
[1736885469177,0.2520827,96466.0,96465.0,0.0010028]
[1736885469178,0.2470827,96466.0,96465.0,0.0010028]
[1736885469447,0.35130962,96466.0,96465.0,0.0010028]
[1736885469665,0.35630962,96466.0,96465.0,0.0020028]
[1736885469827,0.2470827,96466.0,96465.0,0.0010028]
[1736885470025,0.01349578,96466.0,96465.0,0.0010028]
[1736885470247,0.01049578,96466.0,96465.0,0.0010028]
[1736885470451,0.01312222,96466.0,96465.0,0.0010028]
[1736885470676,0.01312222,96466.0,96465.0,0.3093975]
[1736885470850,0.004,96466.0,96465.0,0.3093975]
[1736885471062,0.00137356,96485.0,96466.0,0.15]
[1736885471251,0.00137356,96485.0,96465.0,0.1593975]
[1736885471252,0.00137356,96485.0,96484.0,0.207288]
[1736885472355,0.00137356,96491.0,96484.0,0.31151492]
[1736885472558,0.00137356,96491.0,96490.0,0.207275]
[1736885473815,0.1,96525.0,96490.0,0.207275]
[1736885473816,0.00137356,96497.0,96490.0,0.64477692]
[1736885474017,0.00137356,96511.0,96492.0,0.357271]
[1736885474196,0.00137356,96510.0,96492.0,0.46149792]
[1736885474608,0.00166804,96493.0,96492.0,0.46149792]
[1736885474806,0.00166804,96493.0,96492.0,0.52143133]
[1736885475006,0.00266804,96493.0,96492.0,0.52143133]
[1736885475235,0.00166804,96493.0,96492.0,0.52543133]
[1736885475732,0.00166804,96493.0,96492.0,0.53443133]
[1736885475937,0.00166804,96493.0,96492.0,0.52543133]
[1736885476506,0.00166804,96493.0,96492.0,0.52143133]
[1736885477148,0.00166804,96493.0,96492.0,0.52443133]
[1736885477367,0.00166804,96493.0,96492.0,0.53343133]
[1736885477597,0.00166804,96493.0,96492.0,0.52443133]
[1736885477821,0.00166804,96493.0,96492.0,0.52143133]
[1736885478052,0.00137356,96529.0,96493.0,0.357268]
[1736885478294,0.00179215,96534.0,96530.0,0.207187]
[1736885478295,0.00137356,96533.0,96530.0,0.207187]
[1736885478544,0.00179215,96534.0,96532.0,0.207185]
[1736885478796,0.00179215,96534.0,96533.0,0.10422692]
[1736885479040,0.00179215,96534.0,96533.0,0.13641214]
[1736885479490,0.00228873,96534.0,96533.0,0.13641214]
[1736885479960,0.00228873,96534.0,96533.0,0.15713711]
[1736885480373,0.00228873,96534.0,96533.0,0.13641214]
[1736885480849,0.00228873,96534.0,96533.0,0.13841214]
[1736885481111,0.00366229,96534.0,96533.0,0.002]
[1736885481310,0.00137356,96528.0,96527.0,0.207195]
[1736885481512,0.00137356,96526.0,96523.0,0.0469]
[1736885481732,0.00137356,96526.0,96524.0,0.207202]
[1736885481948,0.00137356,96526.0,96524.0,0.26588309]
[1736885482160,0.00137356,96526.0,96524.0,0.05868109]
[1736885482829,0.00137356,96526.0,96524.0,0.26588109]
[1736885483053,0.00137356,96525.0,96524.0,0.05868109]
[1736885483253,0.00137356,96525.0,96523.0,0.0469]
[1736885483921,0.00137356,96523.0,96519.0,0.02127299]
[1736885484061,0.00137356,96522.0,96514.0,0.08740165]
[1736885484275,0.00137356,96526.0,96520.0,0.207209]
[1736885484504,0.00137356,96526.0,96524.0,0.2072]
[1736885484736,0.00228873,96534.0,96529.0,0.15]
[1736885484977,0.00228873,96534.0,96533.0,0.404083]
[1736885485220,0.00137356,96549.0,96541.0,0.207165]
[1736885485425,0.00193892,96542.0,96541.0,0.31139192]
[1736885486070,0.00193892,96542.0,96541.0,0.207165]
[1736885486281,0.00137356,96535.0,96534.0,0.03724366]
[1736885486523,0.00137356,96535.0,96532.0,0.207184]
[1736885486694,0.00137356,96537.0,96530.0,0.0772]
[1736885486896,0.00137356,96532.0,96530.0,0.0772]
[1736885487136,0.00137356,96532.0,96531.0,0.207187]
[1736885487479,0.20910292,96542.0,96523.0,0.0469]
[1736885487480,0.00137356,96524.0,96523.0,0.0469]
[1736885487707,0.00137356,96520.0,96519.0,0.0772]
[1736885487918,0.00137356,96514.0,96511.0,0.20723]
[1736885488125,0.00137356,96514.0,96511.0,0.10422692]
[1736885488543,0.00137356,96514.0,96512.0,0.207228]
[1736885488754,0.00137356,96514.0,96513.0,0.06634606]
[1736885488971,0.00137356,96511.0,96510.0,0.0469]
[1736885490084,0.00137356,96511.0,96510.0,0.04739658]
[1736885490281,0.00137356,96511.0,96510.0,0.00049658]
[1736885491513,0.00137356,96511.0,96510.0,0.01049658]
[1736885493250,0.00316633,96511.0,96510.0,0.01049658]
[1736885493451,0.00316633,96511.0,96510.0,0.06274136]
[1736885493881,0.00179277,96511.0,96510.0,0.31696828]
[1736885494871,0.00316633,96511.0,96510.0,0.01049658]
[1736885495315,0.00316633,96511.0,96510.0,0.00349658]
[1736885495506,0.00316633,96511.0,96510.0,0.01249658]
[1736885495955,0.00316633,96511.0,96510.0,0.00049658]
[1736885496287,0.00316633,96511.0,96510.0,0.00449658]
[1736885496490,0.00316633,96511.0,96510.0,0.07794149]
[1736885497009,0.00316633,96511.0,96510.0,0.07394149]
[1736885497218,0.00316633,96511.0,96510.0,0.00949658]
[1736885497219,0.02616633,96511.0,96510.0,0.00949658]
[1736885497771,0.31660243,96511.0,96510.0,0.00949658]
[1736885497891,0.31530697,96511.0,96510.0,0.00949658]
[1736885498506,0.21393341,96511.0,96510.0,0.00249658]
[1736885498838,0.03790005,96511.0,96510.0,0.00249658]
[1736885499050,0.03919547,96511.0,96510.0,0.00149658]
[1736885499246,0.03919547,96511.0,96510.0,0.00049658]
[1736885500587,0.03919547,96511.0,96510.0,0.00149658]
[1736885500796,0.03919547,96511.0,96510.0,0.00049658]
[1736885500797,0.39342239,96511.0,96510.0,0.00049658]
[1736885500992,0.49212697,96511.0,96510.0,0.00049658]
[1736885501603,0.57162697,96511.0,96510.0,5.8e-07]
[1736885501806,0.49554156,96493.0,96492.0,0.0008537]
[1736885502155,0.80077494,96493.0,96492.0,7e-07]
[1736885502370,0.20869956,96466.0,96453.0,0.0008528]
[1736885502524,0.34350254,96466.0,96453.0,0.0008528]
[1736885502865,0.34747942,96466.0,96453.0,0.0008528]
[1736885503198,0.77697942,96466.0,96453.0,0.0008528]
[1736885503394,0.92380896,96466.0,96453.0,0.0008528]
[1736885503599,0.93404444,96466.0,96465.0,0.0010028]
[1736885504185,0.82737942,96466.0,96465.0,0.0010028]
[1736885505118,0.82737942,96466.0,96465.0,0.0020028]
[1736885505323,0.82537942,96466.0,96465.0,0.0010028]
[1736885505731,0.82737942,96466.0,96465.0,0.0010028]
[1736885506147,0.82537942,96466.0,96465.0,0.0010028]
[1736885506579,0.82737942,96466.0,96465.0,0.0010028]
[1736885506756,0.82737942,96466.0,96465.0,0.0020028]
[1736885506957,0.82737942,96466.0,96465.0,0.0010028]
[1736885507339,0.82737942,96466.0,96465.0,0.0020028]
[1736885508750,0.77897942,96466.0,96465.0,0.0020028]
[1736885509583,0.77697942,96466.0,96465.0,0.0020028]
[1736885509789,0.77897942,96466.0,96465.0,0.0020028]